bitfinex/quotes_SOLUSD_20250710
["timestamp","ask_amount","ask_price","bid_price","bid_amount"]
[1752176045532,0.71,158.84,158.8,32.32]
[1752176046046,26.0,158.85,158.81,0.39]
[1752176046339,26.0,158.85,158.82,0.39]
[1752176046644,26.71,158.85,158.8,32.32]
[1752176046817,26.71,158.85,158.81,0.39]
[1752176047216,26.0,158.85,158.81,0.39]
[1752176047418,26.71,158.85,158.8,32.32]
[1752176047655,26.71,158.85,158.8,32.71]
[1752176048442,26.0,158.85,158.81,0.39]
[1752176048649,26.0,158.85,158.8,32.32]
[1752176048848,26.71,158.85,158.8,32.32]
[1752176049022,26.71,158.85,158.8,32.71]
[1752176050231,0.65,158.84,158.8,32.71]
[1752176050752,26.0,158.85,158.8,32.71]
[1752176050958,26.65,158.85,158.8,32.71]
[1752176051952,26.65,158.85,158.81,0.39]
[1752176053846,0.65,158.85,158.81,0.39]
[1752176055348,26.0,158.86,158.82,0.39]
[1752176055652,0.68,158.87,158.82,0.39]
[1752176056334,0.65,158.86,158.8,89.39]
[1752176056540,4.6782539,158.85,158.81,32.26]
[1752176056749,0.65,158.84,158.81,32.26]
[1752176056951,0.65,158.84,158.8,89.0]
[1752176057264,0.65,158.84,158.81,32.28]
[1752176057825,0.65,158.83,158.78,0.45]
[1752176058042,0.65,158.83,158.79,32.3]
[1752176058756,0.65,158.83,158.79,32.69]
[1752176059769,0.65,158.85,158.8,0.39]
[1752176060060,0.65,158.84,158.81,32.28]
[1752176061454,2.242,158.87,158.81,32.67]
[1752176061772,4.67766887,158.86,158.82,0.39]
[1752176062254,0.65,158.86,158.82,0.39]
[1752176063376,0.65,158.86,158.81,32.28]
[1752176063568,0.65,158.85,158.81,32.28]
[1752176063766,0.65,158.85,158.81,32.67]
[1752176065964,0.65,158.86,158.81,32.67]
[1752176066342,27.592,158.87,158.82,0.39]
[1752176066343,26.03,158.87,158.82,0.39]
[1752176066553,26.68,158.87,158.83,0.39]
[1752176068346,26.68,158.87,158.81,32.90968326]
[1752176068543,26.68,158.87,158.81,33.29968326]
[1752176068871,26.68,158.87,158.81,32.90968326]
[1752176069073,26.68,158.87,158.82,0.39]
[1752176069775,0.65,158.86,158.82,0.39]
[1752176070648,0.65,158.85,158.81,32.96968326]
[1752176071056,0.65,158.84,158.81,32.34]
[1752176071252,0.65,158.84,158.81,0.06]
[1752176071572,4.67937425,158.83,158.82,32.24]
[1752176071766,0.65,158.83,158.82,32.24]
[1752176072474,0.65,158.83,158.81,0.06]
[1752176072769,0.65,158.83,158.82,32.24]
[1752176073370,0.65,158.83,158.81,0.06]
[1752176073550,26.0,158.84,158.82,32.24]
[1752176074165,0.65,158.83,158.82,32.24]
[1752176075455,0.65,158.83,158.82,32.22]
[1752176077256,5.33847241,158.83,158.82,32.22]
[1752176079271,4.68847241,158.83,158.82,32.22]
[1752176079673,5.34847241,158.83,158.82,32.22]
[1752176080581,0.66,158.83,158.82,32.22]
[1752176083479,26.0,158.84,158.82,32.22]
[1752176083781,26.66,158.84,158.82,32.22]
[1752176084780,0.66,158.83,158.82,32.22]
[1752176084959,26.66,158.84,158.82,32.22]
[1752176086160,0.66,158.83,158.82,32.22]
[1752176087087,0.66,158.86,158.82,32.22]
[1752176087280,26.66,158.86,158.82,32.22]
[1752176087484,26.0,158.86,158.82,32.22]
[1752176087788,0.66,158.85,158.81,0.06]
[1752176087990,0.66,158.85,158.82,32.2]
[1752176090579,0.66,158.85,158.81,0.06]
[1752176090791,0.66,158.85,158.83,32.2]
[1752176090962,0.80216157,158.85,158.84,32.2]
[1752176091165,0.66,158.85,158.81,0.06]
[1752176091789,0.69,158.85,158.81,0.06]
[1752176092370,0.69,158.85,158.82,32.2]
[1752176093292,0.66,158.84,158.82,32.2]
[1752176095485,0.66,158.84,158.81,0.06]
[1752176096297,0.66,158.83,158.81,0.06]
[1752176096823,0.66,158.83,158.82,32.2]
[1752176100197,26.03,158.85,158.82,32.2]
[1752176100198,0.03,158.85,158.82,32.59]
[1752176100498,0.69,158.85,158.82,32.2]
[1752176101979,0.03,158.85,158.82,32.59]
[1752176102613,0.69,158.85,158.82,32.59]
[1752176102892,0.66,158.84,158.82,32.2]
[1752176103310,0.66,158.83,158.82,32.2]
[1752176103992,0.03,158.85,158.82,32.2]
[1752176104300,0.66,158.84,158.82,32.2]
[1752176108212,0.69,158.85,158.82,32.2]
[1752176108514,0.03,158.85,158.82,32.59]
[1752176108702,0.69,158.85,158.82,32.2]
[1752176109614,0.03,158.85,158.82,32.2]
[1752176109797,0.03,158.85,158.82,32.59]
[1752176112801,0.68,158.84,158.83,32.2]
[1752176113206,0.68,158.84,158.81,0.06]
[1752176113412,0.68,158.83,158.81,0.06]
[1752176114402,0.68,158.83,158.82,32.2]
[1752176115645,0.03,158.85,158.82,32.2]
[1752176115809,0.71,158.85,158.82,32.2]
[1752176116118,0.71,158.85,158.83,32.2]
[1752176116511,0.68,158.84,158.83,32.2]
[1752176117632,0.68,158.84,158.81,0.06]
[1752176117932,0.68,158.84,158.83,32.2]
[1752176119534,0.68,158.84,158.81,0.06]
[1752176119740,0.68,158.84,158.81,0.45]
[1752176120033,0.68,158.84,158.81,0.06]
[1752176120215,0.68,158.83,158.81,0.06]
[1752176120935,0.68,158.83,158.82,32.2]
[1752176124740,0.68,158.84,158.82,32.2]
[1752176127041,0.03,158.85,158.82,32.2]
[1752176127221,0.68,158.84,158.82,32.2]
[1752176127536,0.28432314,158.82,158.81,0.06]
[1752176128035,17.89116868,158.82,158.81,0.06]
[1752176128745,22.59894712,158.82,158.81,32.26]
[1752176129321,31.14493827,158.82,158.81,32.26]
[1752176129616,31.14202404,158.82,158.81,32.26]
[1752176131538,31.14202404,158.82,158.81,0.06]
[1752176131845,31.14202404,158.82,158.81,32.26]
[1752176133731,29.25309318,158.82,158.81,32.26]
[1752176135941,31.14202404,158.82,158.81,32.26]
[1752176137520,31.14202404,158.82,158.81,0.06]
[1752176137843,31.14202404,158.82,158.81,32.26]
[1752176138448,31.13376103,158.82,158.81,32.26]
[1752176147255,26.0,158.79,158.78,0.06]
[1752176147453,30.6966012,158.79,158.78,32.26]
[1752176148937,30.6966012,158.79,158.78,32.65]
[1752176149137,4.6966012,158.79,158.78,32.65]
[1752176150277,26.0,158.83,158.78,32.65]
[1752176150571,30.69630535,158.82,158.79,0.39]
[1752176150739,4.69630535,158.81,158.79,0.39]
[1752176151077,0.03,158.84,158.79,1.01976257]
[1752176151239,4.6968104,158.83,158.79,0.62976257]
[1752176151438,4.6968104,158.82,158.8,0.39]
[1752176151652,0.03,158.84,158.81,32.2]
[1752176151862,0.03,158.84,158.82,0.39]
[1752176151863,4.69593347,158.83,158.82,0.39]
[1752176153464,4.69593347,158.83,158.82,32.59]
[1752176156162,4.69528362,158.83,158.82,32.59]
[1752176159571,4.69528362,158.83,158.82,139.14648916]
[1752176159872,0.03,158.84,158.82,138.51684554]
[1752176160041,0.03,158.84,158.82,138.12684554]
[1752176160244,0.03,158.84,158.83,0.39]
[1752176160857,0.03,158.84,158.83,1.01960397]
[1752176165167,0.03,158.84,158.83,90.01960397]
[1752176172385,0.03,158.87,158.86,42.78468397]
[1752176172560,4.67618432,158.93,158.9,26.0]
[1752176172767,0.2,158.94,158.91,33.17928701]
[1752176172979,0.2,158.94,158.92,16.78468397]
[1752176173285,0.2,158.94,158.93,50.0003765]
[1752176173598,0.2,158.98,158.94,16.78468397]
[1752176173765,0.2,158.98,158.95,32.78912865]
[1752176173965,0.2,158.98,158.95,32.97912865]
[1752176174161,0.2,158.98,158.95,32.78912865]
[1752176174380,0.89,158.98,158.95,32.78912865]
[1752176174885,0.2,158.98,158.95,32.97912865]
[1752176175681,0.2,158.98,158.96,0.19]
[1752176175883,0.2,158.98,158.97,32.16]
[1752176178495,0.2,158.98,158.97,138.27684554]
[1752176178684,0.2,158.98,158.97,144.55468758]
[1752176178890,0.01,158.98,158.97,290.85468758]
[1752176179067,0.01,158.98,158.97,298.49068758]
[1752176180384,0.01,158.98,158.97,260.33716868]
[1752176180581,0.01,158.98,158.97,32.16]
[1752176180905,0.01,158.98,158.97,48.94468397]
[1752176182067,0.01,158.98,158.97,49.37116868]
[1752176184681,0.01,158.98,158.97,81.36468758]
[1752176184893,0.01,158.98,158.97,170.36468758]
[1752176185473,0.01,158.98,158.97,164.37116868]
[1752176186123,0.01,158.98,158.97,132.21116868]
[1752176186292,0.01,158.98,158.97,89.0]
[1752176186604,0.01,158.98,158.97,121.8290495]
[1752176187009,0.01,158.98,158.97,138.61373347]
[1752176187174,0.01,158.98,158.97,137.98468397]
[1752176187880,0.01,158.98,158.97,89.0]
[1752176188207,0.01,158.98,158.97,121.2]
[1752176188607,0.01,158.98,158.97,121.8290495]
[1752176188994,0.7,158.98,158.97,121.8290495]
[1752176189302,0.01,158.98,158.97,121.8290495]
[1752176196200,0.7,158.98,158.96,27.16]
[1752176196500,0.7,158.98,158.94,0.06]
[1752176196705,0.7,158.98,158.95,32.2]
[1752176197098,0.7,158.98,158.94,0.06]
[1752176198308,0.7,158.98,158.95,32.2]
[1752176198501,0.7,158.98,158.94,0.06]
[1752176204528,0.7,158.98,158.95,32.18]
[1752176204731,0.7,158.98,158.94,0.06]
[1752176207020,0.28432314,158.96,158.94,0.06]
[1752176207222,26.0,158.93,158.9,27.14]
[1752176207423,0.7,158.92,158.84,113.78758397]
[1752176209107,0.7,158.92,158.85,32.16]
[1752176210326,0.7,158.92,158.84,89.0]
[1752176210521,0.7,158.92,158.85,32.18]
[1752176211325,0.7,158.92,158.86,32.18]
[1752176211524,0.7,158.92,158.84,89.0]
[1752176211699,0.7,158.92,158.87,32.18]
[1752176211905,0.7,158.92,158.84,89.0]
[1752176212103,0.7,158.92,158.85,32.18]
[1752176212507,0.7,158.92,158.85,121.18]
[1752176213220,0.7,158.92,158.85,89.0]
[1752176213424,0.7,158.92,158.86,32.18]
[1752176218219,24.99647749,158.93,158.86,32.18]
[1752176219102,24.99647749,158.93,158.86,32.85]
[1752176220126,24.99647749,158.93,158.87,0.67]
[1752176220317,1.6619,158.94,158.87,1.29944545]
[1752176220504,2.3619,158.94,158.88,0.67]
[1752176220826,2.3619,158.94,158.89,32.16]
[1752176221197,0.7,158.93,158.9,0.67]
[1752176221403,0.7,158.93,158.89,32.83]
[1752176221603,0.7,158.93,158.9,0.67]
[1752176221815,1.6619,158.94,158.9,0.67]
[1752176222023,2.3619,158.94,158.9,0.67]
[1752176222729,0.7,158.96,158.91,0.67]
[1752176222937,0.7,158.96,158.92,32.16]
[1752176223229,0.7,158.96,158.93,0.67]
[1752176223631,0.7,158.96,158.92,32.83]
[1752176224339,0.7,158.96,158.93,0.67]
[1752176224843,0.7,158.96,158.92,32.16]
[1752176225007,0.7,158.95,158.92,32.83]
[1752176225218,0.7,158.94,158.92,32.16]
[1752176225731,0.7,158.96,158.92,32.83]
[1752176226034,1.6135,158.98,158.92,32.83]
[1752176226035,0.03,158.94,158.92,32.83]
[1752176226234,0.03,158.94,158.92,32.16]
[1752176227333,0.73,158.94,158.92,32.16]
[1752176228022,0.73,158.94,158.93,32.16]
[1752176229337,0.03,158.94,158.93,32.16]
[1752176229709,0.71,158.94,158.93,32.16]
[1752176229909,0.03,158.94,158.93,32.16]
[1752176230814,0.71,158.94,158.93,32.16]
[1752176231524,0.03,158.94,158.93,32.16]
[1752176232631,0.71,158.94,158.93,32.16]
[1752176232935,0.71,158.94,158.9,89.0]
[1752176233241,0.71,158.94,158.88,89.06]
[1752176233415,0.71,158.94,158.88,0.06]
[1752176233838,26.0,158.91,158.88,0.06]
[1752176234040,0.68,158.9,158.88,0.06]
[1752176237032,0.68,158.9,158.89,32.16]
[1752176237313,0.68,158.9,158.88,0.06]
[1752176242536,0.68,158.9,158.89,32.16]
[1752176242847,0.68,158.9,158.88,0.06]
[1752176243019,26.0,158.91,158.88,0.06]
[1752176243218,0.68,158.89,158.88,0.06]
[1752176244926,0.68,158.89,158.88,32.22]
[1752176245245,0.68,158.89,158.88,0.06]
[1752176245443,0.68,158.89,158.88,32.22]
[1752176248252,0.68,158.89,158.88,0.06]
[1752176248428,0.68,158.89,158.88,32.22]
[1752176250238,26.0,158.91,158.88,32.22]
[1752176250239,0.03,158.93,158.88,32.91]
[1752176250452,26.0,158.91,158.88,32.91]
[1752176250652,26.68,158.91,158.88,32.91]
[1752176250843,26.68,158.91,158.88,32.22]
[1752176251144,0.68,158.91,158.88,32.22]
[1752176251336,0.68,158.9,158.88,32.22]
[1752176256354,0.68,158.91,158.88,32.22]
[1752176256559,0.68,158.91,158.88,32.91]
[1752176257038,0.68,158.91,158.88,32.22]
[1752176260054,26.0,158.92,158.88,32.22]
[1752176260263,0.66,158.91,158.88,32.22]
[1752176262165,0.94432314,158.91,158.88,0.06]
[1752176262361,27.57452228,158.91,158.89,32.16]
[1752176262551,26.0,158.89,158.88,0.06]
[1752176262754,26.0,158.89,158.88,32.22]
[1752176262948,26.66,158.89,158.88,32.22]
[1752176263255,26.66,158.89,158.88,0.06]
[1752176263663,26.66,158.89,158.88,32.22]
[1752176267145,26.66,158.89,158.88,0.06]
[1752176267352,26.66,158.89,158.88,32.22]
[1752176268839,26.66,158.89,158.88,0.06]
[1752176269036,26.66,158.89,158.88,32.22]
[1752176273363,44.50136782,158.89,158.88,0.06]
[1752176273658,44.50136782,158.89,158.88,32.22]
[1752176274240,49.62161392,158.89,158.88,32.22]
[1752176274859,51.5097126,158.89,158.88,0.06]
[1752176275256,59.3134264,158.89,158.88,0.06]
[1752176276561,66.38788298,158.89,158.88,0.06]
[1752176276765,72.40575734,158.89,158.88,0.06]
[1752176276987,72.40575734,158.89,158.81,0.06]
[1752176277167,26.42648471,158.82,158.81,0.06]
[1752176277349,48.53685028,158.82,158.81,0.06]
[1752176277549,48.53685028,158.82,158.81,32.22]
[1752176277852,31.78196717,158.82,158.81,32.22]
[1752176278048,31.49764403,158.82,158.81,32.22]
[1752176279773,30.83764403,158.82,158.81,32.22]
[1752176280187,4.69548246,158.82,158.81,32.88]
[1752176280479,0.66,158.9,158.81,40.9364]
[1752176280667,0.66,158.9,158.81,40.2764]
[1752176280845,0.66,158.9,158.82,0.62964362]
[1752176281050,0.63019914,158.89,158.81,40.2764]
[1752176281249,0.66,158.88,158.81,40.2764]
[1752176281645,26.66,158.88,158.81,40.2764]
[1752176282671,0.66,158.87,158.81,40.2764]
[1752176286364,26.66,158.88,158.81,40.2764]
[1752176286674,26.0,158.88,158.81,40.2764]
[1752176286849,0.14216157,158.9,158.82,0.62964362]
[1752176287050,26.14216157,158.9,158.82,0.62964362]
[1752176287455,26.80216157,158.9,158.82,0.62964362]
[1752176287681,0.66,158.89,158.82,0.62964362]
[1752176292509,0.66,158.89,158.82,89.62964362]
[1752176292993,3.9607894,158.88,158.82,89.62964362]
[1752176293176,3.96111716,158.87,158.82,89.62964362]
[1752176293491,0.66,158.89,158.82,89.62964362]
[1752176293876,3.96273298,158.88,158.82,89.62964362]
[1752176294080,3.96273298,158.87,158.82,89.62964362]
[1752176294393,3.96273298,158.86,158.82,89.62964362]
[1752176294685,0.66,158.89,158.82,89.62964362]
[1752176297499,0.14216157,158.88,158.82,89.0]
[1752176297699,0.69,158.87,158.83,32.16]
[1752176298899,0.69,158.87,158.81,8.1164]
[1752176299088,0.69,158.87,158.82,32.16]
[1752176299297,0.14216157,158.86,158.81,8.1164]
[1752176299611,0.69,158.85,158.82,32.16]
[1752176299910,0.77236071,158.84,158.81,0.06]
[1752176300278,0.14216157,158.82,158.81,0.06]
[1752176300680,0.83216157,158.82,158.81,0.06]
[1752176301381,0.83216157,158.82,158.81,32.22]
[1752176302612,0.83216157,158.82,158.81,0.06]
[1752176302912,0.83216157,158.82,158.81,32.22]
[1752176304987,0.83216157,158.82,158.81,0.06]
[1752176305316,0.83216157,158.82,158.81,32.22]
[1752176305718,27.32019914,158.84,158.81,32.22]
[1752176305889,26.69,158.84,158.81,32.22]
[1752176307307,0.69,158.83,158.81,32.22]
[1752176308822,26.0,158.84,158.81,32.22]
[1752176309384,26.69,158.84,158.81,32.22]
[1752176311637,26.0,158.84,158.81,32.22]
[1752176322745,26.0,158.84,158.82,32.16]
[1752176330128,26.0,158.86,158.82,32.16]
[1752176330629,0.14216157,158.87,158.82,32.16]
[1752176334828,0.17216157,158.87,158.82,32.16]
[1752176340249,0.03,158.87,158.82,32.16]
[1752176340447,0.45648471,158.87,158.81,0.06]
[1752176340653,1.08668385,158.87,158.82,32.14]
[1752176340950,1.08668385,158.87,158.81,0.06]
[1752176341165,16.78468397,158.86,158.81,0.06]
[1752176341329,26.0,158.83,158.81,0.06]
[1752176343452,26.0,158.84,158.82,32.14]
[1752176343650,26.0,158.84,158.81,0.06]
[1752176345037,0.14216157,158.84,158.82,32.14]
[1752176345353,0.14216157,158.84,158.81,0.06]
[1752176346856,0.14216157,158.84,158.82,32.14]
[1752176347058,0.14216157,158.84,158.81,0.06]
[1752176348934,0.14216157,158.84,158.82,32.14]
[1752176349258,0.14216157,158.84,158.81,0.06]
[1752176358461,0.14216157,158.84,158.82,32.14]
[1752176358669,0.14216157,158.84,158.81,0.06]
[1752176362055,0.42648471,158.84,158.81,0.06]
[1752176362255,0.63019914,158.83,158.81,0.06]
[1752176362460,0.14216157,158.82,158.81,0.06]
[1752176364372,0.14216157,158.82,158.81,32.2]
[1752176368978,0.14216157,158.83,158.81,32.2]
[1752176370069,26.0,158.82,158.81,32.2]
[1752176370768,0.14216157,158.84,158.81,32.2]
[1752176374613,0.14216157,158.83,158.81,32.2]
[1752176375871,26.0,158.84,158.81,32.2]
[1752176376776,1.05668385,158.86,158.81,32.2]
[1752176376777,0.14216157,158.85,158.81,32.2]
[1752176377384,26.0,158.84,158.81,32.2]
[1752176378286,26.03,158.87,158.81,32.2]
[1752176378693,0.14216157,158.86,158.81,32.2]
[1752176379191,0.03,158.84,158.81,32.2]
[1752176391978,0.03,158.84,158.81,121.2]
[1752176392682,0.03,158.84,158.82,0.62964362]
[1752176395805,0.03,158.84,158.82,89.62964362]
[1752176397806,0.03,158.84,158.83,16.78468397]
[1752176399891,0.03,158.84,158.83,48.88468397]
[1752176401405,0.03,158.84,158.83,49.51428794]
[1752176401903,0.03,158.84,158.83,138.51428794]
[1752176402083,0.03,158.84,158.83,137.88468397]
[1752176403197,0.03,158.84,158.83,89.0]
[1752176403399,0.03,158.84,158.83,121.1]
[1752176403909,0.03,158.84,158.83,89.0]
[1752176404205,0.03,158.84,158.83,121.1]
[1752176404409,0.03,158.84,158.83,137.88468397]
[1752176408111,0.03,158.84,158.83,121.1]
[1752176413812,0.03,158.84,158.83,32.1]
[1752176419516,0.03,158.84,158.83,121.1]
[1752176422522,0.03,158.84,158.83,137.88468397]
[1752176425439,0.03,158.84,158.83,48.88468397]
[1752176425606,0.03,158.84,158.83,49.51428794]
[1752176430442,0.71,158.84,158.83,49.51428794]
[1752176430620,0.03,158.84,158.83,49.51428794]
[1752176431424,0.03,158.84,158.83,138.51428794]
[1752176431644,0.03,158.84,158.83,137.88468397]
[1752176442552,0.03,158.84,158.83,165.04468397]
[1752176447654,0.03,158.87,158.86,42.78468397]
[1752176447860,0.03,158.87,158.86,164.87065376]
[1752176448164,0.03,158.87,158.86,164.24116868]
[1752176448545,0.03,158.87,158.86,138.24116868]
[1752176455468,0.03,158.87,158.86,142.07324181]
[1752176457352,0.03,158.89,158.88,0.42648471]
[1752176457560,0.03,158.89,158.88,59.09589055]
[1752176461048,0.03,158.89,158.88,148.03589055]
[1752176461245,0.03,158.89,158.88,163.76468397]
[1752176461869,0.03,158.89,158.86,88.94]
[1752176462074,0.03,158.89,158.84,16.78468397]
[1752176462253,0.03,158.89,158.85,32.04]
[1752176463366,0.03,158.89,158.83,27.16]
[1752176463555,4.10923036,158.88,158.84,32.04]
[1752176463757,0.03,158.89,158.85,32.04]
[1752176464074,4.10280911,158.88,158.86,32.04]
[1752176464273,0.03,158.89,158.87,32.04]
[1752176464587,4.10286445,158.88,158.83,27.16]
[1752176464764,4.10286445,158.87,158.83,27.16]
[1752176465075,0.03,158.89,158.83,27.16]
[1752176465288,4.10172309,158.88,158.83,27.16]
[1752176465582,4.10172309,158.87,158.83,27.16]
[1752176465754,0.03,158.89,158.84,32.04]
[1752176465958,4.10193629,158.88,158.84,32.04]
[1752176466172,4.10193629,158.87,158.84,32.04]
[1752176466366,0.03,158.89,158.84,32.04]
[1752176466575,4.10159754,158.88,158.84,32.04]
[1752176466749,0.03,158.89,158.84,32.04]
[1752176466951,4.03244248,158.88,158.84,32.04]
[1752176467170,0.03,158.89,158.84,32.04]
[1752176467351,4.03220905,158.88,158.84,32.04]
[1752176467557,0.03,158.89,158.84,32.04]
[1752176467855,4.03198324,158.88,158.84,32.04]
[1752176468048,0.03,158.89,158.84,32.04]
[1752176468346,4.03207705,158.88,158.84,32.04]
[1752176468551,0.03,158.89,158.84,32.04]
[1752176468748,4.03308966,158.88,158.84,32.04]
[1752176468952,0.03,158.89,158.84,32.04]
[1752176469152,4.03288532,158.88,158.85,32.04]
[1752176469353,0.03,158.89,158.85,32.04]
[1752176469552,4.03300394,158.88,158.85,32.04]
[1752176469777,0.03,158.89,158.85,32.04]
[1752176469958,4.03298857,158.88,158.85,32.04]
[1752176470159,0.03,158.89,158.85,32.04]
[1752176470358,4.03319479,158.88,158.85,32.04]
[1752176470675,0.03,158.89,158.85,32.04]
[1752176470871,4.03332187,158.88,158.85,32.04]
[1752176471080,0.03,158.89,158.85,32.04]
[1752176471281,4.03331264,158.88,158.85,32.04]
[1752176471456,0.03,158.89,158.85,32.04]
[1752176471656,4.03313853,158.88,158.85,32.04]
[1752176471956,0.03,158.89,158.85,32.04]
[1752176472162,4.03357973,158.88,158.85,32.04]
[1752176472461,0.03,158.89,158.85,32.04]
[1752176472661,4.03341658,158.88,158.85,32.04]
[1752176472865,0.03,158.89,158.85,32.04]
[1752176473058,4.03321225,158.88,158.85,32.04]
[1752176473258,0.03,158.89,158.85,32.04]
[1752176474086,4.03353414,158.88,158.85,32.04]
[1752176474377,0.03,158.89,158.85,32.04]
[1752176477186,4.05016622,158.88,158.85,32.04]
[1752176477762,0.03,158.89,158.85,32.04]
[1752176478086,4.0515182,158.88,158.85,32.04]
[1752176478266,0.03,158.89,158.85,32.04]
[1752176478460,4.05255209,158.88,158.85,32.04]
[1752176480277,0.03,158.89,158.85,32.04]
[1752176480488,4.05165887,158.88,158.85,32.04]
[1752176480785,0.03,158.89,158.85,32.04]
[1752176480982,4.05165887,158.88,158.85,32.04]
[1752176481186,0.03,158.89,158.85,32.04]
[1752176481486,0.03,158.89,158.83,27.22]
[1752176481487,4.05157422,158.88,158.83,27.22]
[1752176481670,26.66019914,158.89,158.83,27.22]
[1752176481671,4.05157422,158.87,158.83,27.22]
[1752176481985,4.04757394,158.86,158.84,32.04]
[1752176482193,26.03,158.89,158.84,32.04]
[1752176482392,4.04214757,158.88,158.84,32.04]
[1752176482591,4.04214757,158.87,158.84,32.04]
[1752176482773,26.03,158.89,158.84,32.04]
[1752176482774,4.04214757,158.86,158.84,32.04]
[1752176482966,0.17216157,158.89,158.83,27.22]
[1752176483281,4.04237028,158.88,158.85,32.04]
[1752176483462,4.04237028,158.87,158.86,32.04]
[1752176483667,4.04237028,158.87,158.83,27.22]
[1752176483991,4.04237028,158.86,158.83,27.22]
[1752176484292,0.17216157,158.89,158.83,27.22]
[1752176484492,4.03869967,158.88,158.83,27.22]
[1752176484693,4.03869967,158.87,158.83,27.22]
[1752176484993,4.03869967,158.86,158.84,32.04]
[1752176485291,0.17216157,158.89,158.84,32.04]
[1752176485492,4.04247429,158.88,158.84,32.04]
[1752176485678,4.04247429,158.87,158.84,32.04]
[1752176485879,4.04247429,158.86,158.84,32.04]
[1752176486080,0.17216157,158.89,158.84,32.04]
[1752176486281,4.0436985,158.88,158.84,32.04]
[1752176486488,4.0436985,158.87,158.84,32.04]
[1752176486689,4.0436985,158.86,158.84,32.04]
[1752176486995,0.17216157,158.89,158.84,32.04]
[1752176487220,4.04119953,158.88,158.84,32.04]
[1752176487373,4.04119953,158.87,158.85,0.06]
[1752176487574,0.80236071,158.89,158.86,32.04]
[1752176487795,4.04052178,158.88,158.85,0.06]
[1752176487995,0.80236071,158.89,158.85,0.06]
[1752176487996,4.04052178,158.87,158.85,0.06]
[1752176488196,4.04052178,158.86,158.85,0.06]
[1752176489090,4.04052178,158.86,158.85,32.1]
[1752176490182,4.04052178,158.88,158.85,32.1]
[1752176490493,4.04052178,158.87,158.85,32.1]
[1752176490686,4.04052178,158.86,158.85,32.1]
[1752176492203,0.80236071,158.89,158.85,32.1]
[1752176492509,4.03745586,158.88,158.85,32.1]
[1752176492680,4.03745586,158.87,158.85,32.1]
[1752176492880,0.80236071,158.89,158.85,32.1]
[1752176493182,0.80236071,158.89,158.85,0.06]
[1752176493183,4.03758105,158.88,158.85,0.06]